bitfinex/quotes_BTCUSD_20250916
["timestamp","ask_amount","ask_price","bid_price","bid_amount"]
[1758033613889,0.69714,115120.0,115110.0,1.55101478]
[1758033613890,0.42042,115120.0,115110.0,1.55101478]
[1758033614137,0.42032,115120.0,115110.0,1.55101478]
[1758033614361,0.69724,115120.0,115110.0,1.55101478]
[1758033615553,0.69724,115120.0,115110.0,1.89101478]
[1758033617308,0.42032,115120.0,115110.0,1.89101478]
[1758033617508,0.36324,115120.0,115110.0,1.06033162]
[1758033617784,0.36324,115120.0,115110.0,1.89101478]
[1758033618422,0.08344,115120.0,115110.0,2.15891478]
[1758033618643,0.36024,115120.0,115110.0,2.15891478]
[1758033619064,0.36124,115120.0,115110.0,2.18800916]
[1758033619694,0.36224,115120.0,115110.0,2.19000916]
[1758033619932,0.27876,115120.0,115110.0,2.19000916]
[1758033620613,0.27876,115120.0,115110.0,1.92010916]
[1758033621280,0.27876,115120.0,115110.0,1.89401478]
[1758033626603,0.27876,115120.0,115110.0,1.06333162]
[1758033626814,0.27876,115120.0,115110.0,1.89401478]
[1758033629907,0.27876,115120.0,115110.0,1.43239818]
[1758033630692,0.002,115120.0,115110.0,1.43239818]
[1758033630898,0.27824,115120.0,115110.0,1.43239818]
[1758033631106,0.002,115120.0,115110.0,1.80146474]
[1758033631284,0.10600001,115120.0,115110.0,1.80146474]
[1758033631694,0.10600001,115120.0,115110.0,2.1038392]
[1758033631892,1e-08,115120.0,115110.0,2.1038392]
[1758033636209,1e-08,115120.0,115110.0,1.36570608]
[1758033636421,1e-08,115120.0,115110.0,2.1038392]
[1758033636660,1e-08,115120.0,115110.0,2.3737392]
[1758033637140,1e-08,115120.0,115110.0,1.72839264]
[1758033641348,1e-08,115120.0,115110.0,2.00431264]
[1758033643276,1e-08,115120.0,115110.0,1.72839264]
[1758033643498,1e-08,115120.0,115110.0,1.73689264]
[1758033643935,1e-08,115120.0,115110.0,1.36782608]
[1758033644147,1e-08,115120.0,115110.0,1.73689264]
[1758033645230,1e-08,115120.0,115110.0,2.23689264]
[1758033646473,1e-08,115120.0,115110.0,2.22839264]
[1758033646696,1e-08,115120.0,115110.0,1.93684074]
[1758033646919,1e-08,115120.0,115110.0,1.96699264]
[1758033647136,1e-08,115120.0,115110.0,1.91074628]
[1758033647371,1e-08,115120.0,115110.0,1.94089818]
[1758033647591,1e-08,115120.0,115110.0,1.20623162]
[1758033647813,0.00206001,115120.0,115110.0,1.22914162]
[1758033648017,1e-08,115120.0,115110.0,1.59820818]
[1758033648229,0.27592001,115120.0,115110.0,1.23219162]
[1758033648463,1e-08,115120.0,115110.0,1.60125818]
[1758033648686,0.27592001,115120.0,115110.0,1.60125818]
[1758033649302,0.27592001,115120.0,115110.0,1.10125818]
[1758033649988,1e-08,115120.0,115110.0,1.10125818]
[1758033650222,0.27592001,115120.0,115110.0,1.10125818]
[1758033650445,1e-08,115120.0,115110.0,1.10125818]
[1758033650669,0.27592001,115120.0,115110.0,1.10125818]
[1758033650899,1e-08,115120.0,115110.0,1.10125818]
[1758033651130,0.27592001,115120.0,115110.0,1.10125818]
[1758033651351,0.13872001,115120.0,115110.0,1.10125818]
[1758033652010,1e-08,115120.0,115110.0,1.10125818]
[1758033652230,0.27592001,115120.0,115110.0,1.10125818]
[1758033652440,1e-08,115120.0,115110.0,1.10125818]
[1758033652660,0.27592001,115120.0,115110.0,1.10125818]
[1758033657223,0.27592001,115120.0,115110.0,1.09275818]
[1758033657797,1e-08,115120.0,115110.0,1.09275818]
[1758033658412,0.12924001,115120.0,115110.0,1.09275818]
[1758033658824,0.25008001,115120.0,115110.0,1.09275818]
[1758033660036,0.25008001,115120.0,115110.0,1.43275818]
[1758033660800,1e-08,115120.0,115110.0,1.43275818]
[1758033661009,0.11348001,115120.0,115110.0,1.43275818]
[1758033662389,1e-08,115120.0,115110.0,1.43275818]
[1758033662613,0.10196001,115120.0,115110.0,1.43275818]
[1758033663066,1e-08,115120.0,115110.0,1.43275818]
[1758033663761,1e-08,115120.0,115110.0,1.45885357]
[1758033665255,1e-08,115120.0,115110.0,1.82792013]
[1758033665690,1e-08,115120.0,115110.0,2.10384013]
[1758033665909,1e-08,115120.0,115110.0,1.82792013]
[1758033666116,1e-08,115120.0,115110.0,2.10380013]
[1758033666342,1e-08,115120.0,115110.0,1.45885357]
[1758033667614,1e-08,115120.0,115110.0,1.82792013]
[1758033668213,1e-08,115120.0,115110.0,1.45885357]
[1758033669544,1e-08,115120.0,115110.0,1.08978701]
[1758033669767,1e-08,115120.0,115110.0,1.45885357]
[1758033671176,1e-08,115120.0,115110.0,1.72875357]
[1758033671628,1e-08,115120.0,115110.0,2.09782013]
[1758033672539,1e-08,115120.0,115110.0,2.42370013]
[1758033673729,0.51034116,115150.0,115140.0,0.17370158]
[1758033673948,0.51034116,115150.0,115140.0,0.62926959]
[1758033674163,0.51024116,115150.0,115140.0,1.03122959]
[1758033674391,0.51024116,115150.0,115140.0,1.05715959]
[1758033674584,0.41732,115150.0,115140.0,1.05715959]
[1758033674824,0.69316,115150.0,115140.0,1.39715959]
[1758033675509,0.69416,115150.0,115140.0,1.40970324]
[1758033676623,0.41832,115150.0,115140.0,1.41070324]
[1758033676841,0.69416,115150.0,115140.0,1.41070324]
[1758033677058,0.69416,115150.0,115140.0,1.41080324]
[1758033678177,0.69416,115150.0,115140.0,1.04173668]
[1758033678671,0.69416,115150.0,115140.0,1.41080324]
[1758033679108,0.69416,115150.0,115140.0,1.47674978]
[1758033680063,0.69416,115150.0,115140.0,1.74664978]
[1758033681072,0.36024,115150.0,115140.0,1.74664978]
[1758033682811,0.08444,115150.0,115140.0,1.74664978]
[1758033683040,0.36024,115150.0,115140.0,1.74664978]
[1758033683769,0.36024,115150.0,115140.0,1.77680168]
[1758033684197,0.36024,115150.0,115140.0,1.80288982]
[1758033689744,0.36024,115150.0,115140.0,2.26366572]
[1758033689938,0.36024,115150.0,115140.0,2.27216572]
[1758033690345,0.36024,115150.0,115140.0,1.44232326]
[1758033690570,0.36024,115150.0,115140.0,2.27216572]
[1758033693279,0.36024,115150.0,115140.0,2.24607758]
[1758033695407,0.36024,115150.0,115140.0,2.23757758]
[1758033695989,0.36024,115150.0,115140.0,1.40476512]
[1758033695990,0.36239,115150.0,115140.0,1.40476512]
[1758033696222,0.36239,115150.0,115140.0,1.82154635]
[1758033696445,0.36231,115150.0,115140.0,2.23646758]
[1758033696668,0.36016,115150.0,115140.0,2.23949758]
[1758033708733,0.36016,115150.0,115140.0,1.40965512]
[1758033708973,0.36016,115150.0,115140.0,2.23949758]
[1758033709239,0.36223,115150.0,115140.0,2.23949758]
[1758033709453,0.36008,115150.0,115140.0,2.23949758]
[1758033710492,0.08444,115150.0,115140.0,2.23949758]
[1758033710902,0.21208,115150.0,115140.0,2.23949758]
[1758033713023,0.34412,115150.0,115140.0,2.23949758]
[1758033716405,0.08444,115150.0,115140.0,2.23949758]
[1758033716620,0.20592,115150.0,115140.0,2.23949758]
[1758033717545,0.2354,115150.0,115140.0,2.23949758]
[1758033717748,0.001,115150.0,115140.0,2.23949758]
[1758033717960,0.1332,115150.0,115140.0,2.23949758]
[1758033718184,0.26332,115150.0,115140.0,2.23949758]
[1758033718665,0.001,115150.0,115140.0,2.23949758]
[1758033718866,0.10588,115150.0,115140.0,2.23949758]
[1758033720401,0.001,115150.0,115140.0,2.23949758]
[1758033720617,0.22088,115150.0,115140.0,2.23949758]
[1758033720828,0.001,115150.0,115140.0,2.23949758]
[1758033721052,0.359,115160.0,115150.0,0.17368649]
[1758033721270,0.359,115160.0,115150.0,0.94699917]
[1758033721486,0.359,115160.0,115150.0,0.97438917]
[1758033721962,0.359,115160.0,115150.0,1.37448917]
[1758033722438,0.35947178,115160.0,115150.0,1.37448917]
[1758033723081,0.36047178,115160.0,115150.0,1.10558917]
[1758033723756,0.36047178,115160.0,115150.0,1.10758917]
[1758033724429,0.36043178,115160.0,115150.0,1.10758917]
[1758033730463,0.36043178,115160.0,115150.0,1.44758917]
[1758033731307,0.36039178,115160.0,115150.0,1.44758917]
[1758033731531,0.08491178,115160.0,115150.0,1.44758917]
[1758033731752,0.08491178,115160.0,115150.0,1.8625104]
[1758033731966,0.27695178,115160.0,115150.0,1.8625104]
[1758033732456,0.00147178,115160.0,115150.0,1.8625104]
[1758033732676,0.27695178,115160.0,115150.0,1.88859737]
[1758033735870,0.4172,115180.0,115170.0,0.20380823]
[1758033736103,0.69793148,115180.0,115170.0,1.12015214]
[1758033736324,0.69793148,115180.0,115170.0,0.29040968]
[1758033736535,0.69793148,115180.0,115170.0,1.52025214]
[1758033736752,0.69793148,115180.0,115170.0,1.54296214]
[1758033736973,0.69793148,115180.0,115170.0,1.54497214]
[1758033737204,0.69793148,115180.0,115170.0,1.54296214]
[1758033737681,0.69893148,115180.0,115170.0,1.54296214]
[1758033738321,0.70093148,115180.0,115170.0,1.60805976]
[1758033738566,0.70093148,115180.0,115170.0,1.58534976]
[1758033739032,0.71173148,115180.0,115170.0,1.17042853]
[1758033739246,0.70973148,115180.0,115170.0,1.16942853]
[1758033739691,0.71173148,115180.0,115170.0,1.17042853]
[1758033739908,0.70973148,115180.0,115170.0,1.16942853]
[1758033740124,0.70873148,115180.0,115170.0,1.16942853]
[1758033740769,0.70973148,115180.0,115170.0,1.16942853]
[1758033741006,0.71073148,115180.0,115170.0,1.17042853]
[1758033741213,0.70973148,115180.0,115170.0,1.17042853]
[1758033741888,0.70973148,115180.0,115170.0,1.17142853]
[1758033743288,0.69893148,115180.0,115170.0,1.17142853]
[1758033744133,0.69893148,115180.0,115170.0,1.58634976]
[1758033746404,0.69893148,115180.0,115170.0,1.60905976]
[1758033746602,0.69574148,115180.0,115170.0,0.7812273]
[1758033746849,0.69574148,115180.0,115170.0,1.61106976]
[1758033747278,0.69378148,115180.0,115170.0,0.7844273]
[1758033747503,0.69574148,115180.0,115170.0,1.61106976]
[1758033748168,0.69378148,115180.0,115170.0,1.61106976]
[1758033748383,0.69574148,115180.0,115170.0,1.61426976]
[1758033750127,0.69574148,115180.0,115170.0,1.61106976]
[1758033750339,0.69574148,115180.0,115170.0,1.58835976]
[1758033750567,0.69893148,115180.0,115170.0,1.58835976]
[1758033751868,0.69893148,115180.0,115170.0,1.12722876]
[1758033752619,0.69893148,115180.0,115170.0,1.12521876]
[1758033757730,0.70973148,115180.0,115170.0,1.12521876]
[1758033758390,0.69893148,115180.0,115170.0,1.12521876]
[1758033759512,0.70973148,115180.0,115170.0,1.12521876]
[1758033759772,0.69893148,115180.0,115170.0,1.12521876]
[1758033759960,0.70973148,115180.0,115170.0,0.7263554]
[1758033760414,0.88337273,115180.0,115170.0,0.7263554]
[1758033760638,0.70973148,115180.0,115170.0,0.7263554]
[1758033760885,0.70957148,115180.0,115170.0,1.09506686]
[1758033761592,0.70953148,115180.0,115170.0,1.09506686]
[1758033763159,0.43429148,115180.0,115170.0,1.09506686]
[1758033763386,0.70953148,115180.0,115170.0,1.09506686]
[1758033764459,0.70953148,115180.0,115170.0,0.7263554]
[1758033764836,0.70953148,115180.0,115170.0,1.09506686]
[1758033765833,0.88317273,115180.0,115170.0,0.7263554]
[1758033766016,0.88317273,115180.0,115170.0,0.3263554]
[1758033766219,0.88317273,115180.0,115170.0,0.15269907]
[1758033766422,1.25188419,115180.0,115170.0,0.0021]
[1758033766826,1.25198419,115180.0,115170.0,0.0021]
[1758033767678,1.00283618,115180.0,115170.0,0.0021]
[1758033767914,0.63412472,115180.0,115170.0,0.0021]
[1758033768089,0.90932472,115180.0,115170.0,0.0021]
[1758033768507,0.63412472,115180.0,115170.0,0.002]
[1758033768712,0.90932472,115180.0,115170.0,0.002]
[1758033773663,0.63412472,115180.0,115170.0,0.002]
[1758033774090,0.90932472,115180.0,115170.0,0.002]
[1758033775608,0.63412472,115180.0,115170.0,0.002]
[1758033775787,0.90932472,115180.0,115170.0,0.002]
[1758033777700,0.63412472,115180.0,115170.0,0.002]
[1758033777866,0.90928472,115180.0,115170.0,0.002]
[1758033781456,1.27799618,115180.0,115170.0,0.002]
[1758033789456,1.00283618,115180.0,115170.0,0.002]
[1758033789914,1.27795618,115180.0,115170.0,0.002]
[1758033791929,1.00283618,115180.0,115170.0,0.002]
[1758033792363,1.27791618,115180.0,115170.0,0.002]
[1758033792593,1.00283618,115180.0,115170.0,0.002]
[1758033792812,1.27791618,115180.0,115170.0,0.002]
[1758033794357,1.00283618,115180.0,115170.0,0.002]
[1758033794562,1.27791618,115180.0,115170.0,0.002]
[1758033794773,1.26711618,115180.0,115170.0,0.002]
[1758033795808,1.27791618,115180.0,115170.0,0.002]
[1758033798661,0.90920472,115180.0,115170.0,0.002]
[1758033798881,1.27791618,115180.0,115170.0,0.002]
[1758033801364,0.90920472,115180.0,115170.0,0.002]
[1758033801578,1.27791618,115180.0,115170.0,0.002]
[1758033802688,0.63412472,115180.0,115170.0,0.002]
[1758033802887,0.90912472,115180.0,115170.0,0.002]
[1758033803945,0.89832472,115180.0,115170.0,0.002]
[1758033804535,0.90912472,115180.0,115170.0,0.002]
[1758033805506,1.27783618,115180.0,115170.0,0.002]
[1758033807957,0.90912472,115180.0,115170.0,0.002]
[1758033808166,1.27783618,115180.0,115170.0,0.002]
[1758033810657,0.90912472,115180.0,115170.0,0.002]
[1758033810802,1.27783618,115180.0,115170.0,0.002]
[1758033812250,0.90912472,115180.0,115170.0,0.002]
[1758033812514,1.27783618,115180.0,115170.0,0.002]
[1758033813952,1.32413453,115180.0,115170.0,0.002]
[1758033817978,1.04913453,115180.0,115170.0,0.002]
[1758033818192,1.32401453,115180.0,115170.0,0.002]
[1758033822399,1.04913453,115180.0,115170.0,0.002]
[1758033822608,1.32397453,115180.0,115170.0,0.002]
[1758033822807,1.04913453,115180.0,115170.0,0.002]
[1758033823034,0.44453347,115180.0,115170.0,0.59281614]
[1758033823243,0.44453347,115180.0,115170.0,0.61872614]
[1758033823460,0.61817472,115180.0,115170.0,0.61872614]
[1758033823670,0.89301472,115180.0,115170.0,0.61872614]
[1758033825140,0.61817472,115180.0,115170.0,0.61872614]
[1758033825344,0.89301472,115180.0,115170.0,0.61872614]
[1758033829680,0.89297472,115180.0,115170.0,0.61872614]
[1758033830979,0.89297472,115180.0,115170.0,0.44506981]
[1758033831233,0.89297472,115180.0,115170.0,0.03006]
[1758033831898,0.89297472,115180.0,115170.0,0.20371633]
[1758033833641,1.30798453,115180.0,115170.0,0.20371633]
[1758033834600,1.30993453,115180.0,115170.0,0.20077633]
[1758033834837,1.30993453,115180.0,115170.0,0.20371633]
[1758033837045,1.30993453,115180.0,115170.0,0.20077633]
[1758033837541,1.30993453,115180.0,115170.0,0.20371633]
[1758033840218,0.89297472,115180.0,115170.0,0.70522759]
[1758033840482,0.89285472,115180.0,115170.0,0.70654759]
[1758033841217,0.89285472,115180.0,115170.0,0.29153778]
[1758033842439,0.44453347,115180.0,115170.0,0.70654759]
[1758033842926,0.71921347,115180.0,115170.0,1.1215574]
[1758033843165,0.71921347,115180.0,115170.0,0.70654759]
[1758033843166,0.69312148,115180.0,115170.0,0.70654759]
[1758033843623,0.69312148,115180.0,115170.0,1.10664759]
[1758033844355,0.69526148,115180.0,115170.0,1.10370759]
[1758033844632,0.69312148,115180.0,115170.0,1.10683759]
[1758033845170,1.28705254,115180.0,115170.0,0.48860145]
[1758033845418,1.28705254,115180.0,115170.0,0.66225778]
[1758033845985,1.28391254,115180.0,115170.0,0.28760778]
[1758033846749,1.11027129,115180.0,115170.0,0.28760778]
[1758033847551,1.28391254,115180.0,115170.0,0.28760778]
[1758033847801,0.69526148,115180.0,115170.0,0.28760778]
[1758033848814,1.11027129,115180.0,115170.0,0.28760778]
[1758033849044,1.1363616,115180.0,115170.0,0.28760778]
[1758033849270,1.31000285,115180.0,115170.0,0.28760778]
[1758033849497,1.1363616,115180.0,115170.0,0.28760778]
[1758033849714,1.1362816,115180.0,115170.0,0.28760778]
[1758033850144,0.72123179,115180.0,115170.0,0.29073778]
[1758033851179,0.72123179,115180.0,115170.0,0.69073778]
[1758033851428,0.44667179,115180.0,115170.0,0.69073778]
[1758033851690,0.72123179,115180.0,115170.0,0.68760778]
[1758033851894,0.72123179,115180.0,115170.0,0.69073778]
[1758033852466,0.44667179,115180.0,115170.0,0.69073778]
[1758033852673,0.72123179,115180.0,115170.0,0.69073778]
[1758033854119,0.72123179,115180.0,115170.0,0.29073778]
[1758033854356,0.44667179,115180.0,115170.0,0.29073778]
[1758033854598,0.72123179,115180.0,115170.0,0.69073778]
[1758033856590,0.44667179,115180.0,115170.0,0.69073778]
[1758033857105,0.72119179,115180.0,115170.0,0.69073778]
[1758033857377,0.72119179,115180.0,115170.0,0.68760778]
[1758033857620,0.72119179,115180.0,115170.0,0.29073778]
[1758033858072,0.72119179,115180.0,115170.0,0.69073778]
[1758033859655,0.72115179,115180.0,115170.0,0.69073778]
[1758033860800,0.72115179,115180.0,115170.0,1.10574759]
[1758033862742,0.71901179,115180.0,115170.0,1.10574759]
[1758033862942,0.44453179,115180.0,115170.0,1.10574759]
[1758033863157,0.71897179,115180.0,115170.0,1.10574759]
[1758033863578,0.44453179,115180.0,115170.0,1.10574759]
[1758033863795,0.71897179,115180.0,115170.0,1.10574759]
[1758033864906,0.44453179,115180.0,115170.0,1.10574759]
[1758033865127,0.71897179,115180.0,115170.0,1.10574759]
[1758033867916,0.72111179,115180.0,115170.0,1.10574759]
[1758033868767,0.71897179,115180.0,115170.0,1.10574759]
[1758033869489,0.69284148,115180.0,115170.0,1.10574759]
[1758033870387,0.69284148,115180.0,115170.0,1.17148791]
[1758033873978,0.69284148,115180.0,115170.0,1.12525467]
[1758033874718,0.69284148,115180.0,115170.0,0.7564781]
[1758033876076,0.69284148,115180.0,115170.0,1.12525467]
[1758033876508,0.69500148,115180.0,115170.0,1.12525467]
[1758033877138,0.69500148,115180.0,115170.0,0.7564781]
[1758033877722,0.69284148,115180.0,115170.0,0.7564781]
[1758033880315,0.69284148,115180.0,115170.0,0.3564781]
[1758033880871,0.69500148,115180.0,115170.0,0.7564781]
[1758033882661,0.69284148,115180.0,115170.0,0.7564781]
[1758033883864,0.69284148,115180.0,115170.0,0.3564781]
[1758033884530,0.69803148,115180.0,115170.0,0.3279981]
[1758033884939,0.72412154,115180.0,115170.0,0.3279981]
[1758033885238,0.72412154,115180.0,115170.0,0.3518581]
[1758033885995,0.72412154,115180.0,115170.0,0.3538381]
[1758033888217,0.72412154,115180.0,115170.0,0.3518581]
[1758033891534,0.72412154,115180.0,115170.0,0.3538381]
[1758033891796,0.72109154,115180.0,115170.0,0.3538381]
[1758033891997,0.72109154,115180.0,115170.0,0.7538381]
[1758033892782,0.72412154,115180.0,115170.0,0.7538381]
[1758033893154,0.72109154,115180.0,115170.0,0.7538381]
[1758033894938,0.72109154,115180.0,115170.0,0.3538381]
[1758033895387,0.72109154,115180.0,115170.0,0.7538381]
[1758033896735,0.44453154,115180.0,115170.0,0.7569181]
[1758033896865,0.44453154,115180.0,115170.0,1.12569467]
[1758033897072,0.71865154,115180.0,115170.0,1.12569467]
[1758033897309,0.44453154,115180.0,115170.0,1.12569467]
[1758033897515,0.69252148,115180.0,115170.0,1.12569467]
[1758033900602,0.69468148,115180.0,115170.0,0.3538381]
[1758033901463,0.69252148,115180.0,115170.0,0.3568181]
[1758033903076,0.69462148,115180.0,115170.0,0.3279981]
[1758033903297,0.69787148,115180.0,115170.0,0.3279981]
[1758033903501,0.72071146,115180.0,115170.0,0.3531081]
[1758033903931,0.72071146,115180.0,115170.0,0.3560381]
[1758033904188,0.72071146,115180.0,115170.0,0.3531081]
[1758033904584,0.72071146,115180.0,115170.0,0.3560381]
[1758033905799,0.71853146,115180.0,115170.0,0.3560381]
[1758033905992,0.71853146,115180.0,115170.0,0.72481467]
[1758033906132,0.71853146,115180.0,115170.0,1.12481467]
[1758033906487,0.71853146,115180.0,115170.0,0.7560381]
[1758033908796,0.71853146,115180.0,115170.0,0.3560381]
[1758033909236,0.72052146,115180.0,115170.0,0.3531081]
[1758033909492,0.72052146,115180.0,115170.0,0.3560381]
[1758033910752,0.72052146,115180.0,115170.0,0.7560381]
[1758033912005,0.72052146,115180.0,115170.0,0.7531081]
[1758033912413,0.72052146,115180.0,115170.0,0.7560381]
[1758033912616,0.71853146,115180.0,115170.0,0.7560381]
[1758033913086,0.71849146,115180.0,115170.0,0.7560381]
[1758033913290,0.71849146,115180.0,115170.0,1.12481467]
[1758033914114,0.44453146,115180.0,115170.0,1.12481467]
[1758033914357,0.71849146,115180.0,115170.0,1.12481467]
[1758033914581,0.44453146,115180.0,115170.0,1.12481467]
[1758033914790,0.41834148,115180.0,115170.0,1.12481467]
[1758033915000,0.69226148,115180.0,115170.0,1.15090148]
[1758033915643,0.41834148,115180.0,115170.0,1.15090148]
[1758033915878,0.69226148,115180.0,115170.0,1.49090148]
[1758033916104,0.69226148,115180.0,115170.0,1.52105338]
[1758033917968,0.35846148,115180.0,115170.0,1.52105338]
[1758033923700,0.0835,115220.0,115200.0,0.17361111]
[1758033923944,0.08364169,115220.0,115210.0,0.67428366]
[1758033924172,0.27836169,115220.0,115210.0,0.65692406]
[1758033924635,0.27836169,115220.0,115210.0,0.68300279]
[1758033925112,0.27836169,115220.0,115210.0,1.08300279]
[1758033925382,0.27836169,115220.0,115210.0,1.08310279]
[1758033926448,0.27936169,115220.0,115210.0,1.08410279]
[1758033926750,0.27936169,115220.0,115210.0,1.14867341]
[1758033928204,0.27936169,115220.0,115210.0,1.15736165]
[1758033928418,0.27936169,115220.0,115210.0,0.78858508]
[1758033928673,0.27936169,115220.0,115210.0,1.15736165]
[1758033928918,0.27936169,115220.0,115210.0,0.78858508]
[1758033929143,0.08464169,115220.0,115210.0,1.18751355]
[1758033929367,0.27376001,115220.0,115210.0,1.18751355]
[1758033929786,0.27376001,115220.0,115210.0,1.53601355]
[1758033930240,0.27376,115220.0,115210.0,1.53501355]
[1758033930449,0.41758,115240.0,115230.0,0.17356591]
[1758033930661,0.6912,115240.0,115230.0,0.62884393]
[1758033930875,0.6912,115240.0,115230.0,0.68704583]
[1758033931237,0.6912,115240.0,115230.0,0.71311702]
[1758033931435,0.6912,115240.0,115230.0,0.71411702]
[1758033932040,0.6922,115240.0,115230.0,0.71511702]
[1758033932293,0.6922,115240.0,115230.0,0.34644045]
[1758033932502,0.6922,115240.0,115230.0,0.74644045]
[1758033932710,0.6922,115240.0,115230.0,1.11521702]
[1758033933283,0.6922,115240.0,115230.0,0.74644045]
[1758033933702,0.6922,115240.0,115230.0,0.71628855]
[1758033933936,0.6922,115240.0,115230.0,1.10466856]
[1758033939905,0.6922,115240.0,115230.0,0.69021736]
[1758033940129,0.6922,115240.0,115230.0,1.10466856]
[1758033940352,0.6922,115240.0,115230.0,0.69021736]
[1758033940557,0.6922,115240.0,115230.0,1.10466856]
[1758033942531,0.69204,115240.0,115230.0,1.51911976]
[1758033942735,0.69204,115240.0,115230.0,1.10466856]
[1758033942953,0.69204,115240.0,115230.0,1.51911976]
[1758033945391,0.41848,115240.0,115230.0,1.51911976]
[1758033945624,0.692,115240.0,115230.0,1.54927166]
[1758033945838,0.692,115240.0,115230.0,0.72036926]
[1758033946046,0.692,115240.0,115230.0,1.54927166]
[1758033946477,0.35832,115240.0,115230.0,1.54927166]
[1758033950808,0.35832,115240.0,115230.0,1.13482046]
[1758033951008,0.35832,115240.0,115230.0,1.54927166]
[1758033959457,0.35832,115240.0,115230.0,1.52612166]
[1758033959678,0.35832,115240.0,115230.0,1.54808166]
[1758033959884,0.35832,115240.0,115230.0,1.55103166]
[1758033960311,0.37457291,115240.0,115230.0,1.55103166]
[1758033961261,0.35832,115240.0,115230.0,1.55103166]
[1758033962745,0.3582,115240.0,115230.0,1.55103166]
[1758033968537,0.35816,115240.0,115230.0,1.55103166]
[1758033972208,0.11464,115240.0,115230.0,1.55103166]
[1758033973420,0.0014,115240.0,115230.0,1.55103166]
[1758033973653,0.09748,115240.0,115230.0,2.16093166]
[1758033974259,0.18728,115240.0,115230.0,2.16093166]
[1758033975569,0.0014,115240.0,115230.0,2.16093166]
[1758033978150,0.0014,115240.0,115230.0,2.1870012]
[1758033985616,0.0014,115240.0,115230.0,1.9171012]
[1758033985831,1e-08,115240.0,115230.0,2.1903012]
[1758033987026,1e-08,115240.0,115230.0,2.6047524]
[1758033987551,1e-08,115240.0,115230.0,2.1903012]
[1758033990300,1e-08,115240.0,115230.0,1.9171012]
[1758033990503,1e-08,115240.0,115230.0,2.1902612]
[1758033995991,1e-08,115240.0,115230.0,2.0977683]
[1758033996199,1e-08,115240.0,115230.0,2.0977283]
[1758033997459,1e-08,115240.0,115230.0,2.3676283]
[1758033998106,1e-08,115240.0,115230.0,2.0945083]
[1758033998354,1e-08,115240.0,115230.0,2.3675883]
[1758033999673,1e-08,115240.0,115230.0,1.99938355]
[1758034000053,1e-08,115240.0,115230.0,2.3675883]
[1758034000902,1e-08,115240.0,115230.0,2.3760883]
[1758034001281,1e-08,115240.0,115230.0,2.3760483]
[1758034001502,1e-08,115240.0,115230.0,2.23480355]
[1758034001705,1e-08,115240.0,115230.0,2.23386355]
[1758034002490,1e-08,115240.0,115230.0,2.8751083]
[1758034004599,1e-08,115240.0,115230.0,2.875057]
[1758034004866,1e-08,115240.0,115230.0,2.602017]
[1758034005050,1e-08,115240.0,115230.0,2.23381225]
[1758034007942,1e-08,115240.0,115230.0,1.96391225]
[1758034008123,1e-08,115240.0,115230.0,2.605117]
[1758034009417,1e-08,115240.0,115230.0,2.105117]
[1758034010653,1e-08,115240.0,115230.0,1.73199225]
[1758034011076,1e-08,115240.0,115230.0,1.3637875]
[1758034011289,1e-08,115240.0,115230.0,1.73199225]
[1758034011776,1e-08,115240.0,115230.0,1.3637875]
[1758034012030,1e-08,115240.0,115230.0,1.73199225]
[1758034012283,1e-08,115240.0,115230.0,1.72889225]
[1758034012631,1e-08,115240.0,115230.0,2.00185225]
[1758034012801,1e-08,115240.0,115230.0,1.72889225]
[1758034014437,1e-08,115240.0,115230.0,2.00185225]
[1758034014938,1e-08,115240.0,115230.0,1.72889225]
[1758034015149,1e-08,115240.0,115230.0,2.00185225]
[1758034015368,1e-08,115240.0,115230.0,2.00189225]
[1758034015785,1e-08,115240.0,115230.0,2.00698225]
[1758034016623,1e-08,115240.0,115230.0,2.375187]
[1758034017880,1e-08,115240.0,115230.0,2.366687]
[1758034018289,1e-08,115240.0,115230.0,1.6302775]
[1758034018493,1e-08,115240.0,115230.0,1.99848225]
[1758034019863,1e-08,115240.0,115230.0,1.72552225]
[1758034020076,1e-08,115240.0,115230.0,1.99848225]
[1758034020495,1e-08,115240.0,115230.0,2.366687]
[1758034021983,1e-08,115250.0,115240.0,0.59370275]
[1758034022202,0.0004,115270.0,115260.0,0.51352073]
[1758034022421,0.00054169,115270.0,115260.0,0.97881693]
[1758034022632,0.00054169,115270.0,115260.0,1.40487892]
[1758034022848,0.00054169,115270.0,115260.0,1.43181892]
[1758034024053,0.00054169,115270.0,115260.0,1.73485082]
[1758034024514,0.00054169,115270.0,115260.0,1.79841639]
[1758034024866,0.00054169,115270.0,115260.0,1.52753639]
[1758034025084,0.00054169,115270.0,115260.0,1.53642452]
[1758034025529,0.00154169,115270.0,115260.0,1.53842452]
[1758034025977,0.00154169,115270.0,115260.0,1.53642452]
[1758034026400,0.00154169,115270.0,115260.0,1.53742452]
[1758034027064,0.00154169,115270.0,115260.0,1.53642452]
[1758034027632,0.00154169,115270.0,115260.0,1.53742452]
[1758034028473,0.00154169,115270.0,115260.0,1.52892452]
[1758034028693,0.00154169,115270.0,115260.0,1.52896452]
[1758034031344,0.00154169,115270.0,115260.0,1.16075977]
[1758034031569,0.00154169,115270.0,115260.0,1.52896452]
[1758034033499,0.00154169,115270.0,115260.0,1.53746452]
[1758034038911,0.00154169,115270.0,115260.0,1.80736452]
[1758034040176,0.00154169,115270.0,115260.0,1.46736452]
[1758034040628,0.00154169,115270.0,115260.0,1.80736452]
[1758034041936,0.00154169,115270.0,115260.0,1.79886452]
[1758034043664,0.00154169,115270.0,115260.0,1.45886452]
[1758034044296,0.00154169,115270.0,115260.0,1.52896452]
[1758034045201,0.00154169,115270.0,115260.0,1.79886452]
[1758034046895,0.00154169,115270.0,115260.0,1.80736452]
[1758034050045,0.0004,115280.0,115270.0,0.17350568]
[1758034050255,0.0008721,115280.0,115270.0,0.65702188]
[1758034050657,0.0008721,115280.0,115270.0,1.05702188]
[1758034050923,0.0008721,115280.0,115270.0,1.08308077]
[1758034051133,0.0008721,115280.0,115270.0,1.08318077]
[1758034051334,0.0018721,115280.0,115270.0,1.08518077]
[1758034051535,0.0018721,115280.0,115270.0,0.88347034]
[1758034051736,0.0018721,115280.0,115270.0,1.25167509]
[1758034052123,0.0008721,115280.0,115270.0,1.25067509]
[1758034052513,0.0018721,115280.0,115270.0,1.25167509]
[1758034053733,0.0018721,115280.0,115270.0,1.25067509]
[1758034053933,0.0039521,115280.0,115270.0,1.25415699]
[1758034054134,0.0070821,115280.0,115270.0,1.25515699]
[1758034054343,0.0039521,115280.0,115270.0,1.27885699]
[1758034054705,0.0018721,115280.0,115270.0,1.28082699]
[1758034054913,0.2745521,115280.0,115270.0,1.28082699]